[Event "November 21 Late 2023"]
[Site "https://www.chess.com"]
[Date "2023.11.21"]
[Round "2"]
[White "Erigaisi Arjun"]
[Black "Poltorak, Sebastian"]
[Result "1-0"]
[Board "6"]
[TimeControl "180+1"]
[WhiteFideId "35009192"]
[BlackFideId "1199498"]
[WhiteElo "2729"]
[BlackElo "2250"]
[WhiteTeam "IND"]
[BlackTeam "POL"]
[WhiteClock "0:00:25"]
[BlackClock "0:00:04"]

1. b3 {[%clk 0:03:00]}  c5 {[%clk 0:02:57]} 2. Bb2 {[%clk 0:03:00]}  Nc6 {[%clk 0:02:56]} 3. e3 {[%clk 0:03:00]}  Nf6 {[%clk 0:02:56]} 4. Nf3 {[%clk 0:03:00]}  d5 {[%clk 0:02:55]} 5. Bb5 {[%clk 0:02:59]}  Qb6 {[%clk 0:02:55]} 6. c4 {[%clk 0:02:58]}  dxc4 {[%clk 0:02:51]} 7. bxc4 {[%clk 0:02:53]}  a6 {[%clk 0:02:49]} 8. Bxc6+ {[%clk 0:02:53]}  Qxc6 {[%clk 0:02:48]} 9. O-O {[%clk 0:02:53]}  Bg4 {[%clk 0:02:45]} 10. h3 {[%clk 0:02:42]}  Bxf3 {[%clk 0:02:45]} 11. Qxf3 {[%clk 0:02:43]}  Qxf3 {[%clk 0:02:44]} 12. gxf3 {[%clk 0:02:44]}  b5 {[%clk 0:02:21]} 13. Rc1 {[%clk 0:02:27]}  b4 {[%clk 0:02:17]} 14. d4 {[%clk 0:02:27]}  e6 {[%clk 0:02:14]} 15. Nd2 {[%clk 0:02:22]}  Be7 {[%clk 0:01:50]} 16. Ne4 {[%clk 0:02:08]}  Nxe4 {[%clk 0:01:49]} 17. fxe4 {[%clk 0:02:09]}  O-O {[%clk 0:01:43]} 18. Kf1 {[%clk 0:02:05]}  f6 {[%clk 0:01:38]} 19. Ke2 {[%clk 0:02:04]}  a5 {[%clk 0:01:36]} 20. a4 {[%clk 0:01:53]}  Kf7 {[%clk 0:01:34]} 21. f4 {[%clk 0:01:50]}  Bd6 {[%clk 0:01:27]} 22. e5 {[%clk 0:01:49]}  Bb8 {[%clk 0:01:23]} 23. d5 {[%clk 0:01:47]}  Re8 {[%clk 0:01:01]} 24. d6 {[%clk 0:01:35]}  f5 {[%clk 0:01:00]} 25. Kf3 {[%clk 0:01:31]}  g6 {[%clk 0:01:00]} 26. h4 {[%clk 0:01:30]}  h5 {[%clk 0:00:47]} 27. e4 {[%clk 0:01:30]}  fxe4+ {[%clk 0:00:45]} 28. Kxe4 {[%clk 0:01:31]}  Ba7 {[%clk 0:00:46]} 29. Rg1 {[%clk 0:01:26]}  Bb6 {[%clk 0:00:45]} 30. Rg2 {[%clk 0:01:23]}  Bd8 {[%clk 0:00:43]} 31. Rag1 {[%clk 0:01:22]}  Rg8 {[%clk 0:00:43]} 32. Rh1 {[%clk 0:01:18]}  Ra7 {[%clk 0:00:44]} 33. Bc1 {[%clk 0:01:18]}  Rd7 {[%clk 0:00:43]} 34. Be3 {[%clk 0:01:19]}  Bb6 {[%clk 0:00:43]} 35. Rhg1 {[%clk 0:01:15]}  Rdd8 {[%clk 0:00:38]} 36. Rg5 {[%clk 0:01:11]}  Ba7 {[%clk 0:00:38]} 37. Kf3 {[%clk 0:01:06]}  Bb6 {[%clk 0:00:38]} 38. Rd1 {[%clk 0:00:57]}  Rd7 {[%clk 0:00:36]} 39. Rd2 {[%clk 0:00:50]}  Ba7 {[%clk 0:00:36]} 40. Rdg2 {[%clk 0:00:51]}  Rdd8 {[%clk 0:00:36]} 41. f5 {[%clk 0:00:44]}  exf5 {[%clk 0:00:36]} 42. e6+ {[%clk 0:00:45]}  Kxe6 {[%clk 0:00:31]} 43. Rxg6+ {[%clk 0:00:46]}  Rxg6 {[%clk 0:00:32]} 44. Rxg6+ {[%clk 0:00:47]}  Kf7 {[%clk 0:00:29]} 45. Rh6 {[%clk 0:00:46]}  Kg7 {[%clk 0:00:29]} 46. Re6 {[%clk 0:00:46]}  Rd7 {[%clk 0:00:19]} 47. Kf4 {[%clk 0:00:34]}  b3 {[%clk 0:00:20]} 48. Bc1 {[%clk 0:00:33]}  Bb8 {[%clk 0:00:20]} 49. Bb2+ {[%clk 0:00:30]}  Kf7 {[%clk 0:00:20]} 50. Rf6+ {[%clk 0:00:31]}  Ke8 {[%clk 0:00:18]} 51. Be5 {[%clk 0:00:24]}  Bxd6 {[%clk 0:00:14]} 52. Bxd6 {[%clk 0:00:25]}  Rf7 {[%clk 0:00:12]} 53. Rxf7 {[%clk 0:00:25]}  Kxf7 {[%clk 0:00:04]} 54. Be5 {[%clk 0:00:25]} 1-0

[Event "November 21 Late 2023"]
[Site "https://www.chess.com"]
[Date "2023.11.21"]
[Round "2"]
[White "Maltsevskaya, Aleksandra"]
[Black "Le, Quang Liem"]
[Result "0-1"]
[Board "7"]
[TimeControl "180+1"]
[WhiteFideId "24174041"]
[BlackFideId "12401137"]
[WhiteElo "2296"]
[BlackElo "2665"]
[WhiteTeam "POL"]
[BlackTeam "VIE"]
[WhiteClock "0:00:04"]
[BlackClock "0:01:19"]

1. e4 {[%clk 0:02:57]}  c5 {[%clk 0:03:00]} 2. Nf3 {[%clk 0:02:56]}  Nc6 {[%clk 0:03:00]} 3. d4 {[%clk 0:02:56]}  cxd4 {[%clk 0:03:01]} 4. Nxd4 {[%clk 0:02:56]}  e5 {[%clk 0:03:02]} 5. Nb5 {[%clk 0:02:56]}  d6 {[%clk 0:03:02]} 6. N1c3 {[%clk 0:02:56]}  a6 {[%clk 0:03:03]} 7. Na3 {[%clk 0:02:56]}  Be6 {[%clk 0:03:04]} 8. Bc4 {[%clk 0:02:56]}  Rc8 {[%clk 0:02:55]} 9. O-O {[%clk 0:02:49]}  b5 {[%clk 0:02:52]} 10. Bxe6 {[%clk 0:02:47]}  fxe6 {[%clk 0:02:53]} 11. Ne2 {[%clk 0:02:42]}  Nf6 {[%clk 0:02:48]} 12. Ng3 {[%clk 0:02:41]}  d5 {[%clk 0:02:33]} 13. exd5 {[%clk 0:02:31]}  exd5 {[%clk 0:02:33]} 14. c3 {[%clk 0:02:26]}  Bxa3 {[%clk 0:02:33]} 15. bxa3 {[%clk 0:02:26]}  O-O {[%clk 0:02:33]} 16. Bg5 {[%clk 0:02:25]}  h6 {[%clk 0:02:18]} 17. Bxf6 {[%clk 0:02:23]}  Rxf6 {[%clk 0:02:19]} 18. a4 {[%clk 0:02:21]}  Ne7 {[%clk 0:02:15]} 19. axb5 {[%clk 0:02:20]}  axb5 {[%clk 0:02:16]} 20. Qb3 {[%clk 0:01:56]}  Qa5 {[%clk 0:01:58]} 21. Ne2 {[%clk 0:01:09]}  Rc4 {[%clk 0:01:54]} 22. Rab1 {[%clk 0:01:04]}  Rb6 {[%clk 0:01:42]} 23. Rfe1 {[%clk 0:00:54]}  Kh8 {[%clk 0:01:40]} 24. Qb2 {[%clk 0:00:48]}  Ng6 {[%clk 0:01:38]} 25. Qd2 {[%clk 0:00:46]}  d4 {[%clk 0:01:35]} 26. Rec1 {[%clk 0:00:27]}  Nh4 {[%clk 0:01:32]} 27. Qd3 {[%clk 0:00:23]}  Qa8 {[%clk 0:01:21]} 28. Qg3 {[%clk 0:00:20]}  Rg6 {[%clk 0:01:20]} 29. cxd4 {[%clk 0:00:04]}  Rxg3 {[%clk 0:01:19]} 0-1

[Event "November 21 Late 2023"]
[Site "https://www.chess.com"]
[Date "2023.11.21"]
[Round "2"]
[White "Theodorou, Nikolas"]
[Black "Wieczorek, Oskar"]
[Result "1-0"]
[Board "8"]
[TimeControl "180+1"]
[WhiteFideId "4262875"]
[BlackFideId "1133950"]
[WhiteElo "2525"]
[BlackElo "2407"]
[WhiteTeam "GRE"]
[BlackTeam "POL"]
[WhiteClock "0:00:05"]
[BlackClock "0:00:00"]

1. Nf3 {[%clk 0:03:00]}  c5 {[%clk 0:02:59]} 2. b3 {[%clk 0:03:01]}  d6 {[%clk 0:02:57]} 3. e4 {[%clk 0:02:52]}  Nc6 {[%clk 0:02:55]} 4. c3 {[%clk 0:02:52]}  Nf6 {[%clk 0:02:52]} 5. Bd3 {[%clk 0:02:52]}  e5 {[%clk 0:02:45]} 6. O-O {[%clk 0:02:52]}  g6 {[%clk 0:02:36]} 7. Bc2 {[%clk 0:02:52]}  Bg7 {[%clk 0:02:35]} 8. h3 {[%clk 0:02:50]}  O-O {[%clk 0:02:35]} 9. Re1 {[%clk 0:02:49]}  h6 {[%clk 0:02:28]} 10. Bb2 {[%clk 0:02:49]}  d5 {[%clk 0:02:19]} 11. exd5 {[%clk 0:02:48]}  Nxd5 {[%clk 0:02:20]} 12. Na3 {[%clk 0:02:44]}  Nf4 {[%clk 0:02:12]} 13. Nc4 {[%clk 0:02:40]}  Bxh3 {[%clk 0:01:18]} 14. gxh3 {[%clk 0:02:34]}  Qd7 {[%clk 0:01:17]} 15. Re3 {[%clk 0:02:29]}  Nxh3+ {[%clk 0:00:57]} 16. Kf1 {[%clk 0:02:29]}  Qg4 {[%clk 0:00:43]} 17. Re4 {[%clk 0:02:21]}  Nf4 {[%clk 0:00:38]} 18. Ne3 {[%clk 0:02:12]}  Qh3+ {[%clk 0:00:37]} 19. Kg1 {[%clk 0:02:13]}  Rad8 {[%clk 0:00:31]} 20. Qf1 {[%clk 0:02:08]}  Qxf3 {[%clk 0:00:30]} 21. d3 {[%clk 0:01:34]}  f5 {[%clk 0:00:30]} 22. Rc4 {[%clk 0:01:20]}  Ne2+ {[%clk 0:00:18]} 23. Kh2 {[%clk 0:01:20]}  e4 {[%clk 0:00:19]} 24. Rxc5 {[%clk 0:00:52]}  exd3 {[%clk 0:00:19]} 25. Bd1 {[%clk 0:00:51]}  Be5+ {[%clk 0:00:20]} 26. Rxe5 {[%clk 0:00:51]}  Nxe5 {[%clk 0:00:20]} 27. Qg2 {[%clk 0:00:51]}  Qf4+ {[%clk 0:00:15]} 28. Kh1 {[%clk 0:00:49]}  Qh4+ {[%clk 0:00:15]} 29. Qh2 {[%clk 0:00:50]}  Qe4+ {[%clk 0:00:15]} 30. Qg2 {[%clk 0:00:49]}  Nf3 {[%clk 0:00:15]} 31. Qxg6+ {[%clk 0:00:48]}  Kh8 {[%clk 0:00:16]} 32. Qxh6+ {[%clk 0:00:49]}  Kg8 {[%clk 0:00:15]} 33. Qg6+ {[%clk 0:00:49]}  Kh8 {[%clk 0:00:16]} 34. c4+ {[%clk 0:00:50]}  Nfd4+ {[%clk 0:00:12]} 35. Ng2 {[%clk 0:00:41]}  Rd7 {[%clk 0:00:08]} 36. Bxe2 {[%clk 0:00:37]}  Rh7+ {[%clk 0:00:08]} 37. Kg1 {[%clk 0:00:36]}  Rg7 {[%clk 0:00:07]} 38. Bxd4 {[%clk 0:00:25]}  Qxd4 {[%clk 0:00:07]} 39. Qh6+ {[%clk 0:00:16]}  Kg8 {[%clk 0:00:07]} 40. Rd1 {[%clk 0:00:16]}  dxe2 {[%clk 0:00:08]} 41. Rxd4 {[%clk 0:00:14]}  e1=Q+ {[%clk 0:00:08]} 42. Kh2 {[%clk 0:00:15]}  Qe5+ {[%clk 0:00:09]} 43. Qf4 {[%clk 0:00:10]}  Qxf4+ {[%clk 0:00:06]} 44. Nxf4 {[%clk 0:00:11]}  Rf6 {[%clk 0:00:04]} 45. Nh3 {[%clk 0:00:04]}  Rh6 {[%clk 0:00:05]} 46. Rf4 {[%clk 0:00:04]}  Rgh7 {[%clk 0:00:03]} 47. Rf3 {[%clk 0:00:04]}  Rf7 {[%clk 0:00:02]} 48. Kg2 {[%clk 0:00:05]}  Rg7+ {[%clk 0:00:02]} 49. Kf1 {[%clk 0:00:04]}  Rg4 {[%clk 0:00:01]} 50. Nf4 {[%clk 0:00:04]}  Rd6 {[%clk 0:00:01]} 51. Nd5 {[%clk 0:00:05]}  b5 {[%clk 0:00:00]} 52. Ne7+ {[%clk 0:00:05]} 1-0

[Event "November 21 Late 2023"]
[Site "https://www.chess.com"]
[Date "2023.11.21"]
[Round "2"]
[White "Bortnyk, Olexandr"]
[Black "Feng, Eric"]
[Result "0-1"]
[Board "9"]
[TimeControl "180+1"]
[WhiteFideId "14120828"]
[BlackFideId "30952590"]
[WhiteElo "2725"]
[BlackElo "1785"]
[WhiteTeam "UKR"]
[BlackTeam "USA"]
[WhiteClock "0:00:00"]
[BlackClock "0:00:21"]

1. e4 {[%clk 0:02:57]}  c6 {[%clk 0:02:59]} 2. d4 {[%clk 0:02:55]}  d5 {[%clk 0:02:59]} 3. Nc3 {[%clk 0:02:55]}  dxe4 {[%clk 0:03:00]} 4. Nxe4 {[%clk 0:02:56]}  Bf5 {[%clk 0:02:57]} 5. Ng3 {[%clk 0:02:53]}  Bg6 {[%clk 0:02:56]} 6. h4 {[%clk 0:02:49]}  h6 {[%clk 0:02:56]} 7. Nh3 {[%clk 0:02:47]}  e6 {[%clk 0:02:56]} 8. Nf4 {[%clk 0:02:47]}  Bh7 {[%clk 0:02:56]} 9. Nfh5 {[%clk 0:02:46]}  Nf6 {[%clk 0:02:55]} 10. c3 {[%clk 0:02:46]}  Nbd7 {[%clk 0:02:55]} 11. Bc4 {[%clk 0:02:46]}  Nxh5 {[%clk 0:02:55]} 12. Nxh5 {[%clk 0:02:47]}  Nf6 {[%clk 0:02:55]} 13. Bf4 {[%clk 0:02:46]}  Bg6 {[%clk 0:02:44]} 14. Nxf6+ {[%clk 0:02:43]}  Qxf6 {[%clk 0:02:44]} 15. Be5 {[%clk 0:02:40]}  Qe7 {[%clk 0:02:41]} 16. Qg4 {[%clk 0:02:38]}  O-O-O {[%clk 0:02:38]} 17. O-O {[%clk 0:02:32]}  Qd7 {[%clk 0:02:37]} 18. Rfe1 {[%clk 0:02:29]}  Bf5 {[%clk 0:02:34]} 19. Qg3 {[%clk 0:02:28]}  Rg8 {[%clk 0:02:34]} 20. b4 {[%clk 0:02:19]}  g5 {[%clk 0:02:30]} 21. hxg5 {[%clk 0:02:10]}  Rxg5 {[%clk 0:02:26]} 22. Qh2 {[%clk 0:02:10]}  Be7 {[%clk 0:02:24]} 23. Qxh6 {[%clk 0:02:07]}  Rdg8 {[%clk 0:02:23]} 24. g3 {[%clk 0:02:07]}  Bd6 {[%clk 0:02:22]} 25. Kg2 {[%clk 0:01:42]}  Bf8 {[%clk 0:01:54]} 26. Qh1 {[%clk 0:01:34]}  Be7 {[%clk 0:01:51]} 27. Re3 {[%clk 0:01:30]}  Bg4 {[%clk 0:01:49]} 28. Qh7 {[%clk 0:01:21]}  Bf5 {[%clk 0:01:41]} 29. Qh6 {[%clk 0:00:59]}  R5g6 {[%clk 0:01:41]} 30. Qh5 {[%clk 0:00:55]}  Bg5 {[%clk 0:01:40]} 31. Rae1 {[%clk 0:00:50]}  f6 {[%clk 0:01:36]} 32. Rf3 {[%clk 0:00:41]}  Rh6 {[%clk 0:01:30]} 33. Qxh6 {[%clk 0:00:33]}  Bxh6 {[%clk 0:01:31]} 34. Rxf5 {[%clk 0:00:31]}  exf5 {[%clk 0:01:28]} 35. Bxg8 {[%clk 0:00:31]}  fxe5 {[%clk 0:01:26]} 36. Rxe5 {[%clk 0:00:32]}  Kc7 {[%clk 0:01:10]} 37. Be6 {[%clk 0:00:32]}  Qd6 {[%clk 0:01:05]} 38. f4 {[%clk 0:00:26]}  Bg7 {[%clk 0:01:04]} 39. Re3 {[%clk 0:00:26]}  a5 {[%clk 0:01:05]} 40. a3 {[%clk 0:00:26]}  a4 {[%clk 0:01:01]} 41. Kf2 {[%clk 0:00:25]}  Bh6 {[%clk 0:01:01]} 42. Bxf5 {[%clk 0:00:22]}  Qf6 {[%clk 0:00:58]} 43. Bc2 {[%clk 0:00:20]}  Bf8 {[%clk 0:00:51]} 44. Bxa4 {[%clk 0:00:19]}  Bd6 {[%clk 0:00:51]} 45. Bd1 {[%clk 0:00:15]}  Qf7 {[%clk 0:00:51]} 46. a4 {[%clk 0:00:15]}  Qa2+ {[%clk 0:00:50]} 47. Ke1 {[%clk 0:00:15]}  Qb2 {[%clk 0:00:48]} 48. a5 {[%clk 0:00:15]}  Qc1 {[%clk 0:00:44]} 49. Ke2 {[%clk 0:00:15]}  Qb2+ {[%clk 0:00:44]} 50. Ke1 {[%clk 0:00:15]}  Qg2 {[%clk 0:00:42]} 51. Be2 {[%clk 0:00:14]}  Qg1+ {[%clk 0:00:39]} 52. Kd2 {[%clk 0:00:15]}  Qf2 {[%clk 0:00:39]} 53. Rf3 {[%clk 0:00:15]}  Qg2 {[%clk 0:00:37]} 54. Kd3 {[%clk 0:00:11]}  Qh3 {[%clk 0:00:36]} 55. Kd2 {[%clk 0:00:10]}  Qg2 {[%clk 0:00:35]} 56. Kd3 {[%clk 0:00:11]}  b6 {[%clk 0:00:32]} 57. axb6+ {[%clk 0:00:10]}  Kxb6 {[%clk 0:00:33]} 58. Ke3 {[%clk 0:00:11]}  Qg1+ {[%clk 0:00:32]} 59. Kd2 {[%clk 0:00:11]}  Qb1 {[%clk 0:00:28]} 60. Bd1 {[%clk 0:00:07]}  Qg6 {[%clk 0:00:28]} 61. Bc2 {[%clk 0:00:06]}  Qg4 {[%clk 0:00:26]} 62. Be4 {[%clk 0:00:07]}  Qe6 {[%clk 0:00:24]} 63. Kd3 {[%clk 0:00:07]}  Qg8 {[%clk 0:00:20]} 64. f5 {[%clk 0:00:06]}  Bxg3 {[%clk 0:00:20]} 65. f6 {[%clk 0:00:07]}  Bd6 {[%clk 0:00:20]} 66. f7 {[%clk 0:00:07]}  Qg7 {[%clk 0:00:20]} 67. Rf5 {[%clk 0:00:07]}  Bf8 {[%clk 0:00:20]} 68. Rf3 {[%clk 0:00:06]}  Qg5 {[%clk 0:00:19]} 69. Kc2 {[%clk 0:00:05]}  Qe7 {[%clk 0:00:20]} 70. Kd3 {[%clk 0:00:04]}  Qd6 {[%clk 0:00:20]} 71. Rf5 {[%clk 0:00:04]}  Bg7 {[%clk 0:00:20]} 72. Rf3 {[%clk 0:00:02]}  Bf8 {[%clk 0:00:20]} 73. Ke3 {[%clk 0:00:02]}  Qh6+ {[%clk 0:00:20]} 74. Ke2 {[%clk 0:00:02]}  Qh2+ {[%clk 0:00:20]} 75. Kd3 {[%clk 0:00:03]}  Kb5 {[%clk 0:00:20]} 76. Rf6 {[%clk 0:00:01]}  Ka4 {[%clk 0:00:20]} 77. Bxc6+ {[%clk 0:00:01]}  Kb3 {[%clk 0:00:20]} 78. Bd5+ {[%clk 0:00:02]}  Kb2 {[%clk 0:00:21]} 79. Rf3 {[%clk 0:00:02]}  Qc2+ {[%clk 0:00:20]} 80. Ke3 {[%clk 0:00:01]}  Bh6+ {[%clk 0:00:20]} 81. Rf4 {[%clk 0:00:01]}  Qc1+ {[%clk 0:00:20]} 82. Kd3 {[%clk 0:00:01]}  Qxf4 {[%clk 0:00:21]} 83. Kc4 {[%clk 0:00:01]}  Bf8 {[%clk 0:00:21]} 84. b5 {[%clk 0:00:02]}  Qd6 {[%clk 0:00:22]} 85. Bc6 {[%clk 0:00:02]}  Qe6+ {[%clk 0:00:22]} 86. Bd5 {[%clk 0:00:03]}  Qc8+ {[%clk 0:00:22]} 87. Bc6 {[%clk 0:00:03]}  Qc7 {[%clk 0:00:22]} 88. Kd3 {[%clk 0:00:02]}  Qxf7 {[%clk 0:00:23]} 89. b6 {[%clk 0:00:02]}  Bd6 {[%clk 0:00:22]} 90. b7 {[%clk 0:00:02]}  Kb3 {[%clk 0:00:22]} 91. Ke4 {[%clk 0:00:02]}  Kxc3 {[%clk 0:00:22]} 92. d5 {[%clk 0:00:01]}  Qe7+ {[%clk 0:00:21]} 93. Kf3 {[%clk 0:00:02]}  Kd4 {[%clk 0:00:22]} 94. b8=Q {[%clk 0:00:00]}  Bxb8 {[%clk 0:00:21]} 0-1

[Event "November 21 Late 2023"]
[Site "https://www.chess.com"]
[Date "2023.11.21"]
[Round "2"]
[White "Ballester Llagaria, Luis Eduardo"]
[Black "Grischuk, Alexander"]
[Result "0-1"]
[Board "12"]
[TimeControl "180+1"]
[WhiteFideId "2297620"]
[BlackFideId "4126025"]
[WhiteElo "2344"]
[BlackElo "2699"]
[WhiteTeam "ESP"]
[BlackTeam "RUS"]
[WhiteClock "0:00:17"]
[BlackClock "0:00:48"]

1. e4 {[%clk 0:02:59]}  e5 {[%clk 0:02:58]} 2. Nf3 {[%clk 0:02:59]}  Nc6 {[%clk 0:02:58]} 3. Nc3 {[%clk 0:03:00]}  Nf6 {[%clk 0:02:57]} 4. a3 {[%clk 0:03:00]}  d5 {[%clk 0:02:56]} 5. exd5 {[%clk 0:03:01]}  Nxd5 {[%clk 0:02:57]} 6. Bb5 {[%clk 0:03:01]}  Nxc3 {[%clk 0:02:55]} 7. bxc3 {[%clk 0:03:02]}  Bd6 {[%clk 0:02:55]} 8. d4 {[%clk 0:03:01]}  exd4 {[%clk 0:02:54]} 9. O-O {[%clk 0:03:01]}  O-O {[%clk 0:02:54]} 10. cxd4 {[%clk 0:03:01]}  h6 {[%clk 0:02:50]} 11. c3 {[%clk 0:02:59]}  Qf6 {[%clk 0:02:50]} 12. h3 {[%clk 0:02:58]}  Bf5 {[%clk 0:02:47]} 13. Be3 {[%clk 0:02:57]}  Ne7 {[%clk 0:02:41]} 14. Bd3 {[%clk 0:02:49]}  Rfe8 {[%clk 0:02:28]} 15. c4 {[%clk 0:02:46]}  Rad8 {[%clk 0:02:26]} 16. Rb1 {[%clk 0:02:42]}  b6 {[%clk 0:02:25]} 17. d5 {[%clk 0:02:28]}  c6 {[%clk 0:02:18]} 18. Bd4 {[%clk 0:02:17]}  Qg6 {[%clk 0:02:18]} 19. Nh4 {[%clk 0:02:17]}  Qg5 {[%clk 0:02:19]} 20. Nxf5 {[%clk 0:01:38]}  Nxf5 {[%clk 0:02:20]} 21. f4 {[%clk 0:01:18]}  Bxf4 {[%clk 0:02:04]} 22. Bxf5 {[%clk 0:01:17]}  Qxf5 {[%clk 0:02:02]} 23. Qf3 {[%clk 0:01:17]}  Re4 {[%clk 0:02:01]} 24. Bf2 {[%clk 0:00:48]}  cxd5 {[%clk 0:01:50]} 25. Rb5 {[%clk 0:00:48]}  Rxc4 {[%clk 0:01:40]} 26. g3 {[%clk 0:00:43]}  Qxh3 {[%clk 0:01:13]} 27. Rxd5 {[%clk 0:00:43]}  Rdc8 {[%clk 0:00:59]} 28. Qd3 {[%clk 0:00:34]}  Bg5 {[%clk 0:00:51]} 29. Rd1 {[%clk 0:00:24]}  Rc1 {[%clk 0:00:50]} 30. Be1 {[%clk 0:00:19]}  Rxd1 {[%clk 0:00:49]} 31. Qxd1 {[%clk 0:00:20]}  Be3+ {[%clk 0:00:48]} 32. Bf2 {[%clk 0:00:17]}  Qxg3+ {[%clk 0:00:48]} 0-1

[Event "November 21 Late 2023"]
[Site "https://www.chess.com"]
[Date "2023.11.21"]
[Round "2"]
[White "Gimenez Aguirre, Alejo Ismael"]
[Black "Paravyan, David"]
[Result "1-0"]
[Board "14"]
[TimeControl "180+1"]
[WhiteFideId "32041667"]
[BlackFideId "4194985"]
[WhiteElo "2165"]
[BlackElo "2566"]
[WhiteTeam "ARG"]
[BlackTeam "FID"]
[WhiteClock "0:00:13"]
[BlackClock "0:00:01"]

1. e4 {[%clk 0:02:58]}  e5 {[%clk 0:02:51]} 2. Nf3 {[%clk 0:02:56]}  Nf6 {[%clk 0:02:51]} 3. Nxe5 {[%clk 0:02:56]}  d6 {[%clk 0:02:52]} 4. Nf3 {[%clk 0:02:56]}  Nxe4 {[%clk 0:02:52]} 5. Nc3 {[%clk 0:02:56]}  Nxc3 {[%clk 0:02:52]} 6. dxc3 {[%clk 0:02:57]}  Be7 {[%clk 0:02:53]} 7. Bd3 {[%clk 0:02:57]}  O-O {[%clk 0:02:53]} 8. O-O {[%clk 0:02:57]}  Nd7 {[%clk 0:02:54]} 9. b3 {[%clk 0:02:52]}  Nc5 {[%clk 0:02:54]} 10. Be2 {[%clk 0:02:43]}  Bf6 {[%clk 0:02:53]} 11. Bb2 {[%clk 0:02:43]}  Bg4 {[%clk 0:02:51]} 12. h3 {[%clk 0:02:43]}  Bh5 {[%clk 0:02:51]} 13. Re1 {[%clk 0:02:40]}  Re8 {[%clk 0:02:50]} 14. Nd4 {[%clk 0:02:34]}  Bxe2 {[%clk 0:02:40]} 15. Rxe2 {[%clk 0:02:32]}  Qd7 {[%clk 0:02:40]} 16. Rxe8+ {[%clk 0:02:24]}  Rxe8 {[%clk 0:02:41]} 17. Qf3 {[%clk 0:02:24]}  d5 {[%clk 0:02:34]} 18. Rd1 {[%clk 0:02:19]}  Bxd4 {[%clk 0:02:08]} 19. Rxd4 {[%clk 0:01:32]}  Re1+ {[%clk 0:02:08]} 20. Kh2 {[%clk 0:01:32]}  Qd6+ {[%clk 0:02:07]} 21. g3 {[%clk 0:01:32]}  c6 {[%clk 0:02:07]} 22. c4 {[%clk 0:01:31]}  Ne6 {[%clk 0:02:07]} 23. Rd2 {[%clk 0:01:19]}  d4 {[%clk 0:02:05]} 24. c3 {[%clk 0:01:12]}  h6 {[%clk 0:01:17]} 25. cxd4 {[%clk 0:01:07]}  Ng5 {[%clk 0:01:17]} 26. Qg4 {[%clk 0:01:00]}  Qe7 {[%clk 0:00:29]} 27. d5 {[%clk 0:00:50]}  Rb1 {[%clk 0:00:27]} 28. Qc8+ {[%clk 0:00:42]}  Qf8 {[%clk 0:00:23]} 29. Qxf8+ {[%clk 0:00:33]}  Kxf8 {[%clk 0:00:24]} 30. Kg2 {[%clk 0:00:23]}  cxd5 {[%clk 0:00:24]} 31. cxd5 {[%clk 0:00:22]}  Ke8 {[%clk 0:00:23]} 32. Bxg7 {[%clk 0:00:21]}  h5 {[%clk 0:00:23]} 33. d6 {[%clk 0:00:21]}  Kd7 {[%clk 0:00:23]} 34. Bf8 {[%clk 0:00:18]}  Ne6 {[%clk 0:00:22]} 35. Be7 {[%clk 0:00:19]}  Ra1 {[%clk 0:00:20]} 36. Rd5 {[%clk 0:00:14]}  Rxa2 {[%clk 0:00:19]} 37. Rf5 {[%clk 0:00:14]}  Ke8 {[%clk 0:00:16]} 38. Rxh5 {[%clk 0:00:14]}  Rb2 {[%clk 0:00:16]} 39. Rb5 {[%clk 0:00:14]}  b6 {[%clk 0:00:16]} 40. h4 {[%clk 0:00:14]}  Nd4 {[%clk 0:00:12]} 41. Rd5 {[%clk 0:00:13]}  Ne6 {[%clk 0:00:01]} 42. Bf6 {[%clk 0:00:13]} 1-0

[Event "November 21 Late 2023"]
[Site "https://www.chess.com"]
[Date "2023.11.21"]
[Round "2"]
[White "Zarnicki, Pablo"]
[Black "Deac, Bogdan-Daniel"]
[Result "0-1"]
[Board "18"]
[TimeControl "180+1"]
[WhiteFideId "100137"]
[BlackFideId "1226380"]
[WhiteElo "2468"]
[BlackElo "2641"]
[WhiteTeam "ARG"]
[BlackTeam "ROU"]
[WhiteClock "0:00:00"]
[BlackClock "0:02:01"]

1. e4 {[%clk 0:02:57]}  e5 {[%clk 0:02:58]} 2. Nc3 {[%clk 0:02:57]}  Nf6 {[%clk 0:02:57]} 3. g3 {[%clk 0:02:56]}  d5 {[%clk 0:02:56]} 4. exd5 {[%clk 0:02:57]}  Nxd5 {[%clk 0:02:57]} 5. Bg2 {[%clk 0:02:57]}  Nf6 {[%clk 0:02:57]} 6. Nf3 {[%clk 0:02:56]}  Nc6 {[%clk 0:02:57]} 7. O-O {[%clk 0:02:56]}  Bc5 {[%clk 0:02:58]} 8. Re1 {[%clk 0:02:56]}  O-O {[%clk 0:02:56]} 9. h3 {[%clk 0:02:56]}  Re8 {[%clk 0:02:53]} 10. d3 {[%clk 0:02:56]}  h6 {[%clk 0:02:54]} 11. Be3 {[%clk 0:02:55]}  Bd6 {[%clk 0:02:53]} 12. Qd2 {[%clk 0:02:55]}  Bf5 {[%clk 0:02:49]} 13. a3 {[%clk 0:02:52]}  Qd7 {[%clk 0:02:48]} 14. Kh2 {[%clk 0:02:51]}  Rad8 {[%clk 0:02:47]} 15. Nh4 {[%clk 0:02:46]}  Be6 {[%clk 0:02:42]} 16. Ne4 {[%clk 0:02:43]}  Be7 {[%clk 0:02:38]} 17. Nc5 {[%clk 0:02:29]}  Bxc5 {[%clk 0:02:36]} 18. Bxc5 {[%clk 0:02:30]}  Bd5 {[%clk 0:02:37]} 19. Nf3 {[%clk 0:02:29]}  e4 {[%clk 0:02:15]} 20. dxe4 {[%clk 0:02:25]}  Nxe4 {[%clk 0:02:13]} 21. Qe3 {[%clk 0:02:14]}  Nxg3 {[%clk 0:02:10]} 22. Qf4 {[%clk 0:02:14]}  Ne4 {[%clk 0:02:06]} 23. Be3 {[%clk 0:02:12]}  g5 {[%clk 0:02:01]} 24. Qg4 {[%clk 0:02:10]}  f5 {[%clk 0:02:01]} 25. Qh5 {[%clk 0:02:11]}  Qd6+ {[%clk 0:02:01]} 26. Kg1 {[%clk 0:00:00]}  Bf7 {[%clk 0:02:01]} 0-1